fUST/lending_fUST_20250528
["ID","MTS","AMOUNT","RATE_DAILY","PERIOD"]
[362660554,1748388649034,-430.0,0.00020867,2]
[362660556,1748388649044,-430.0,0.00020867,2]
[362660558,1748388649053,-430.0,0.00020867,2]
[362660560,1748388649062,-430.0,0.00020867,2]
[362660562,1748388649071,-430.0,0.00020867,2]
[362660564,1748388649080,-263.90459267,0.000209,4]
[362660565,1748388649090,-252.21511056,0.00020914,2]
[362660567,1748388649101,-234.88,0.00020941,2]
[362660569,1748388649111,-1000.0,0.00021018,2]
[362660571,1748388649121,-263.90459262,0.00021038,4]
[362660573,1748388649131,-430.0,0.00021093,2]
[362660575,1748388649140,-158.98126907,0.00021093,2]
[362660577,1748388649150,-430.0,0.00021093,2]
[362660578,1748388649159,-430.0,0.00021093,2]
[362660589,1748388649262,-496.2,0.00021093,2]
[362660591,1748388649272,-330.0,0.00021093,2]
[362660593,1748388649282,-430.0,0.00021093,2]
[362660594,1748388649291,-430.0,0.00021093,2]
[362660596,1748388649300,-430.0,0.00021093,2]
[362660598,1748388649310,-430.0,0.00021093,2]
[362660600,1748388649320,-430.0,0.00021093,2]
[362660602,1748388649330,-430.0,0.00021093,2]
[362660604,1748388649340,-516.59345434,0.00021093,2]
[362660606,1748388649351,-201.30607031,0.00021093,2]
[362660608,1748388649362,-430.0,0.00021093,2]
[362660610,1748388649372,-430.0,0.00021093,2]
[362660612,1748388649383,-430.0,0.00021093,2]
[362660614,1748388649393,-430.0,0.00021093,2]
[362660616,1748388649403,-430.0,0.00021093,2]
[362660618,1748388649413,-430.0,0.00021093,2]
[362660620,1748388649423,-430.0,0.00021093,2]
[362660622,1748388649434,-430.0,0.00021095,2]
[362660624,1748388649443,-430.0,0.00021095,2]
[362660626,1748388649452,-430.0,0.00021095,2]
[362660628,1748388649462,-451.01,0.00021138,2]
[362660629,1748388649471,-787.91,0.00021138,2]
[362660631,1748388649481,-430.0,0.00021138,2]
[362660633,1748388649490,-430.0,0.00021138,2]
[362660635,1748388649499,-430.0,0.00021138,2]
[362660637,1748388649509,-430.0,0.00021138,2]
[362660639,1748388649518,-430.0,0.00021138,2]
[362660641,1748388649527,-430.0,0.00021138,2]
[362660643,1748388649536,-430.0,0.00021138,2]
[362660645,1748388649545,-430.0,0.00021139,2]
[362660647,1748388649555,-430.0,0.00021139,2]
[362660649,1748388649564,-430.0,0.00021139,2]
[362660651,1748388649573,-500.78,0.00021139,2]
[362660652,1748388649582,-175.89,0.00021139,2]
[362660654,1748388649592,-324.42,0.00021139,2]
[362660656,1748388649602,-273.94,0.00021139,2]
[362660658,1748388649611,-430.0,0.0002114,2]
[362660660,1748388649620,-490.18,0.0002114,2]
[362660662,1748388649629,-258.36,0.0002114,2]
[362660664,1748388649639,-430.0,0.0002114,2]
[362660666,1748388649649,-430.0,0.0002114,2]
[362660668,1748388649658,-236.58,0.0002114,2]
[362660670,1748388649668,-430.0,0.00021141,2]
[362660672,1748388649678,-395.84678536,0.00021141,2]
[362660674,1748388649688,-430.0,0.00021141,2]
[362660676,1748388649697,-430.0,0.00021141,2]
[362660678,1748388649706,-430.0,0.00021141,2]
[362660679,1748388649715,-249.63,0.00021141,2]
[362660681,1748388649725,-500.0,0.00021164,2]
[362660683,1748388649735,-263.90459262,0.00021176,4]
[362660685,1748388649744,-263.90459262,0.00021314,5]
[362660687,1748388649754,-184.3766379,0.00021358,2]
[362660689,1748388649764,-450.0,0.00021367,2]
[362660691,1748388649773,-450.0,0.00021367,2]
[362660693,1748388649782,-430.0,0.00021369,2]
[362660695,1748388649791,-372.01,0.00021369,2]
[362660697,1748388649800,-430.0,0.00021369,2]
[362660699,1748388649810,-451.01,0.00021412,2]
[362660701,1748388649819,-787.91,0.00021412,2]
[362660703,1748388649828,-430.0,0.00021412,2]
[362660704,1748388649838,-430.0,0.00021412,2]
[362660706,1748388649847,-430.0,0.00021412,2]
[362660708,1748388649856,-430.0,0.00021412,2]
[362660710,1748388649865,-430.0,0.00021412,2]
[362660712,1748388649875,-430.0,0.00021412,2]
[362660714,1748388649884,-430.0,0.00021412,2]
[362660716,1748388649893,-430.0,0.00021413,2]
[362660718,1748388649902,-265.88,0.00021413,2]
[362660720,1748388649911,-164.10537562,0.00021413,2]
[362660722,1748388649920,-430.0,0.00021414,2]
[362660724,1748388649929,-295.35,0.00021414,2]
[362660726,1748388649939,-430.0,0.00021414,2]
[362660727,1748388649948,-195.72,0.00021415,2]
[362660729,1748388649957,-430.0,0.00021415,2]
[362660731,1748388649966,-430.0,0.00021415,2]
[362660733,1748388649975,-430.0,0.00021415,2]
[362660735,1748388649984,-263.90459262,0.00021452,5]
[362660737,1748388649994,-1500.0,0.00021566,2]
[362660739,1748388650003,-263.90459262,0.0002159,5]
[362660741,1748388650012,-252.21511056,0.00021612,2]
[362660743,1748388650023,-430.0,0.00021643,2]
[362660745,1748388650034,-382.52,0.00021643,2]
[362660747,1748388650043,-451.01,0.00021686,2]
[362660749,1748388650052,-787.91,0.00021686,2]
[362660750,1748388650061,-489.02,0.00021686,2]
[362660752,1748388650072,-430.0,0.00021686,2]
[362660754,1748388650081,-430.0,0.00021686,2]
[362660756,1748388650091,-430.0,0.00021686,2]
[362660758,1748388650100,-567.88,0.00021686,2]
[362660760,1748388650110,-404.28,0.00021686,2]
[362660762,1748388650119,-430.0,0.00021686,2]
[362660764,1748388650129,-315.07,0.00021687,2]
[362660766,1748388650138,-430.0,0.00021688,2]
[362660768,1748388650147,-430.0,0.00021688,2]
[362660770,1748388650157,-430.0,0.00021689,2]
[362660772,1748388650166,-430.0,0.00021689,2]
[362660774,1748388650176,-405.0,0.0002169,2]
[362660776,1748388650185,-960.0,0.0002169,2]
[362660777,1748388650196,-263.90459262,0.00021728,5]
[362660779,1748388650205,-2477.17181661,0.000218,2]
[362660783,1748388650226,-253.74189733,0.000218,2]
[362660785,1748388650238,-269.08628606,0.000218,2]
[362660787,1748388650247,-3000.0,0.0002181,2]
[362660789,1748388650256,-3000.0,0.0002182,2]
[362660790,1748388650266,-3000.0,0.0002183,2]
[362660792,1748388650275,-3000.0,0.0002184,2]
[362660794,1748388650284,-3000.0,0.0002185,2]
[362660796,1748388650294,-3000.0,0.0002186,2]
[362660798,1748388650303,-263.90459262,0.00021866,6]
[362660800,1748388650312,-3000.0,0.0002187,2]
[362660802,1748388650322,-3000.0,0.0002188,2]
[362660804,1748388650331,-3000.0,0.0002189,2]
[362660806,1748388650340,-3000.0,0.000219,2]
[362660808,1748388650349,-3000.0,0.0002191,2]
[362660810,1748388650359,-500.0,0.00021917,2]
[362660812,1748388650368,-430.0,0.00021917,2]
[362660814,1748388650377,-216.48034346,0.00021917,2]
[362660816,1748388650386,-3000.0,0.0002192,2]
[362660818,1748388650395,-3000.0,0.0002193,2]
[362660819,1748388650404,-3000.0,0.0002194,2]
[362660821,1748388650413,-4439.024599,0.0002195,2]
[362660823,1748388650423,-451.01,0.0002196,2]
[362660825,1748388650434,-787.91,0.0002196,2]
[362660827,1748388650443,-430.0,0.0002196,2]
[362660829,1748388650452,-430.0,0.0002196,2]
[362660831,1748388650461,-430.0,0.0002196,2]
[362660833,1748388650471,-430.0,0.0002196,2]
[362660835,1748388650481,-430.0,0.00021962,2]
[362660837,1748388650490,-430.0,0.00021962,2]
[362660839,1748388650499,-430.0,0.00021963,2]
[362660841,1748388650508,-430.0,0.00021963,2]
[362660843,1748388650518,-211.39840152,0.00021992,2]
[362660845,1748388650527,-207.4,0.00021992,2]
[362660847,1748388650537,-594.39,0.00022,7]
[362660849,1748388650547,-3685.11,0.00022,2]
[362660851,1748388650556,-34035.45956297,0.00022,7]
[362660855,1748388650596,-89159.67043703,0.00022,7]
[362660857,1748388650606,-2253.44,0.00022,7]
[362660859,1748388650615,-38916.01,0.00022,2]
[362660861,1748388650624,-170.0,0.00022,2]
[362660863,1748388650633,-263.90459262,0.00022003,6]
[362660865,1748388650644,-184.3766379,0.00022066,2]
[362660867,1748388650653,-500.0,0.00022114,2]
[362660869,1748388650663,-263.90459262,0.00022141,6]
[362660871,1748388650672,-500.0,0.00022157,2]
[362660873,1748388650683,-500.0,0.00022157,2]
[362660875,1748388650692,-500.0,0.00022157,2]
[362660877,1748388650702,-500.0,0.00022157,2]
[362660879,1748388650711,-500.0,0.00022157,2]
[362660881,1748388650721,-645.81764302,0.00022157,2]
[362660883,1748388650730,-430.0,0.00022191,2]
[362660885,1748388650740,-200.0,0.00022191,2]
[362660887,1748388650749,-200.0,0.00022191,2]
[362660889,1748388650758,-200.0,0.00022191,2]
[362660891,1748388650767,-200.0,0.00022191,2]
[362660892,1748388650777,-200.0,0.00022191,2]
[362660894,1748388650787,-200.0,0.00022191,2]
[362660896,1748388650797,-200.0,0.00022191,2]
[362660898,1748388650807,-1321.54,0.00022233,2]
[362660900,1748388650817,-451.01,0.00022234,2]
[362660902,1748388650828,-787.91,0.00022234,2]
[362660904,1748388650838,-174.97208439,0.00022234,2]
[362660906,1748388650849,-430.0,0.00022234,2]
[362660908,1748388650859,-430.0,0.00022234,2]
[362660910,1748388650868,-430.0,0.00022234,2]
[362660912,1748388650879,-430.0,0.00022236,2]
[362660914,1748388650888,-430.0,0.00022236,2]
[362660916,1748388650898,-200.0,0.00022236,2]
[362660918,1748388650907,-430.0,0.00022237,2]
[362660920,1748388650916,-430.0,0.00022237,2]
[362660922,1748388650925,-500.0,0.00022238,2]
[362660924,1748388650939,-500.0,0.00022238,2]
[362660926,1748388650948,-600.0,0.00022238,2]
[362660927,1748388650958,-500.0,0.0002226,2]
[362660928,1748388650967,-263.90459262,0.00022279,6]
[362660929,1748388650977,-1001.44,0.000223,2]
[362660930,1748388650986,-252.21511056,0.00022309,2]
[362660931,1748388650995,-263.90459262,0.00022417,7]
[362660932,1748388651004,-500.0,0.00022465,2]
[362660933,1748388651014,-430.0,0.00022465,2]
[362660934,1748388651025,-451.01,0.00022508,2]
[362660935,1748388651034,-787.91,0.00022508,2]
[362660936,1748388651043,-430.0,0.00022508,2]
[362660937,1748388651053,-430.0,0.00022508,2]
[362660938,1748388651062,-430.0,0.00022508,2]
[362660939,1748388651071,-267.44,0.0002251,2]
[362660940,1748388651080,-309.63,0.0002251,2]
[362660941,1748388651090,-200.0,0.0002251,2]
[362660942,1748388651101,-430.0,0.00022511,2]
[362660943,1748388651111,-430.0,0.00022511,2]
[362660944,1748388651120,-263.90459262,0.00022555,7]
[362660945,1748388651130,-167.35413588,0.00022557,2]
[362660946,1748388651139,-263.90459262,0.00022693,7]
[362660947,1748388651149,-1000.0,0.00022705,2]
[362660948,1748388651158,-1000.0,0.00022705,2]
[362660949,1748388651167,-695.67954702,0.00022705,2]
[362660950,1748388651177,-1000.0,0.00022705,2]
[362660951,1748388651187,-1000.0,0.00022705,2]
[362660952,1748388651196,-430.0,0.00022739,2]
[362660953,1748388651206,-184.3766379,0.00022775,2]
[362660954,1748388651215,-451.01,0.00022782,2]
[362660956,1748388651225,-787.91,0.00022782,2]
[362660958,1748388651235,-430.0,0.00022782,2]
[362660960,1748388651244,-430.0,0.00022782,2]
[362660962,1748388651254,-430.0,0.00022782,2]
[362660964,1748388651263,-200.0,0.00022784,2]
[362660966,1748388651273,-179.80598689,0.00022785,2]
[362660968,1748388651283,-430.0,0.00022785,2]
[362660970,1748388651292,-557.41873304,0.00022785,2]
[362660972,1748388651301,-992.96291503,0.00022785,2]
[362660974,1748388651311,-1200.0,0.00022785,2]
[362660976,1748388651321,-263.90459262,0.00022831,8]
[362660986,1748388651406,-263.90459262,0.00022969,8]
[362660988,1748388651423,-151.0,0.00023,5]
[362660991,1748388651434,-38916.01,0.00023,2]
[362660993,1748388651444,-252.21511056,0.00023007,2]
[362660995,1748388651454,-500.0,0.00023013,2]
[362660997,1748388651463,-430.0,0.00023013,2]
[362660999,1748388651473,-170.0,0.00023014,7]
[362661001,1748388651482,-451.01,0.00023056,2]
[362661002,1748388651491,-787.91,0.00023056,2]
[362661004,1748388651501,-430.0,0.00023056,2]
[362661006,1748388651510,-430.0,0.00023056,2]
[362661008,1748388651519,-551.21,0.00023056,2]
[362661010,1748388651529,-191.50249476,0.00023058,2]
[362661012,1748388651538,-430.0,0.00023059,2]
[362661014,1748388651548,-3685.11,0.000231,2]
[362661016,1748388651558,-123195.13,0.000231,7]
[362661019,1748388651568,-263.90459262,0.00023107,8]
[362661020,1748388651577,-263.90459262,0.00023245,8]
[362661023,1748388651587,-1500.0,0.00023253,2]
[362661024,1748388651596,-500.0,0.00023253,2]
[362661026,1748388651606,-1500.0,0.00023253,2]
[362661028,1748388651615,-1500.0,0.00023253,2]
[362661030,1748388651624,-430.0,0.00023287,2]
[362661032,1748388651634,-2643.08,0.00023291,2]
[362661034,1748388651643,-451.01,0.0002333,2]
[362661037,1748388651653,-787.91,0.0002333,2]
[362661038,1748388651662,-430.0,0.0002333,2]
[362661040,1748388651671,-430.0,0.0002333,2]
[362661043,1748388651681,-430.0,0.00023333,2]
[362661044,1748388651690,-1800.0,0.00023333,2]
[362661046,1748388651700,-500.0,0.00023356,2]
[362661048,1748388651709,-215.0738,0.00023361,2]
[362661050,1748388651719,-263.90459262,0.00023383,9]
[362661052,1748388651728,-184.3766379,0.00023483,2]
[362661054,1748388651737,-151.0,0.000235,7]
[362661056,1748388651747,-263.90459262,0.00023521,9]
[362661058,1748388651756,-500.0,0.00023561,2]
[362661060,1748388651765,-430.0,0.00023561,2]
[362661062,1748388651775,-451.01,0.00023604,2]
[362661064,1748388651784,-787.91,0.00023604,2]
[362661066,1748388651794,-430.0,0.00023604,2]
[362661068,1748388651803,-430.0,0.00023604,2]
[362661070,1748388651813,-430.0,0.00023607,2]
[362661072,1748388651823,-263.90459262,0.00023659,9]
[362661074,1748388651832,-263.90459262,0.00023797,9]
[362661077,1748388651842,-43782.49631129,0.000238,2]
[362661079,1748388651855,-5671.99719264,0.000238,2]
[362661081,1748388651866,-9311.19718631,0.000238,2]
[362661099,1748388652155,-630.28,0.00020043,2]
[362661100,1748388652165,-630.28,0.00020317,2]
[362661101,1748388652175,-430.0,0.00020317,2]
[362661102,1748388652185,-430.0,0.00020318,2]
[362661103,1748388652196,-630.28,0.00020591,2]
[362661104,1748388652206,-630.28,0.00020865,2]
[362661105,1748388652215,-630.28,0.00021139,2]
[362661106,1748388652225,-630.28,0.00021413,2]
[362661107,1748388652234,-630.28,0.00021687,2]
[362661108,1748388652244,-630.28,0.00021961,2]
[362661109,1748388652255,-630.28,0.00022235,2]
[362661110,1748388652265,-630.28,0.00022509,2]
[362661111,1748388652275,-630.28,0.00022783,2]
[362661112,1748388652285,-548568.59118617,0.000238,2]
[362661113,1748388652298,-316.03822774,0.000238,2]
[362662580,1748388849715,-736.0,0.00018574,2]
[362662591,1748389229433,320.633566,0.00013699,2]
[362662597,1748389390446,-300.0,0.00018175,2]
[362662598,1748389390470,-700.0,0.00018176,2]
[362662621,1748389832067,-239.978239,0.00017796,2]
[362662622,1748389832077,-253.54534649,0.00017907,2]
[362662627,1748389832296,-2593.87419591,0.00017907,2]
[362662628,1748389832306,-319.3934914,0.00018155,2]
[362662629,1748389832316,-300.0,0.00018175,2]
[362662630,1748389832327,-300.0,0.00018175,2]
[362662631,1748389832338,-300.0,0.00018175,2]
[362662632,1748389832348,-300.0,0.00018175,2]
[362662633,1748389832358,-16722.3806182,0.00018176,2]
[362662634,1748389832368,-90.8618881,0.00018574,2]
[362662635,1748389832378,-244.83060077,0.000189,2]
[362662636,1748389832390,-153.64719825,0.00018975,2]
[362662637,1748389832400,-500.0,0.00019075,2]
[362662638,1748389832409,-500.0,0.00019075,2]
[362662639,1748389832418,-500.0,0.00019075,2]
[362662640,1748389832427,-219.58936317,0.00019075,2]
[362662641,1748389832437,-500.0,0.00019075,2]
[362662642,1748389832446,-500.0,0.00019075,2]
[362662643,1748389832455,-500.0,0.00019075,2]
[362662644,1748389832464,-500.0,0.00019075,2]
[362662645,1748389832474,-500.0,0.00019075,2]
[362662646,1748389832483,-500.0,0.00019075,2]
[362662647,1748389832493,-465.98831244,0.00019075,2]
[362662648,1748389832503,-638.56295228,0.00019075,2]
[362662649,1748389832516,-500.0,0.00019075,2]
[362662650,1748389832526,-500.0,0.00019075,2]
[362662651,1748389832536,-400.0,0.00019075,2]
[362662652,1748389832546,-45284.33972551,0.00019076,2]
[362662653,1748389832556,-4028.84883085,0.00019078,2]
[362662654,1748389832566,-500.0,0.00019173,2]
[362662655,1748389832576,-418.49676619,0.00019173,2]
[362662656,1748389832587,-500.0,0.00019173,2]
[362662657,1748389832597,-500.0,0.00019173,2]
[362662658,1748389832607,-500.0,0.00019173,2]
[362662659,1748389832617,-400.0,0.00019178,2]
[362662660,1748389832626,-400.0,0.00019178,2]
[362662661,1748389832635,-503.60075459,0.00019178,2]
[362662662,1748389832645,-341.25330377,0.00019178,2]
[362662663,1748389832654,-430.0,0.00019178,2]
[362662664,1748389832668,-403.35432411,0.00019178,2]
[362662665,1748389832677,-430.0,0.00019178,2]
[362662666,1748389832687,-430.0,0.00019178,2]
[362662667,1748389832696,-430.0,0.00019178,2]
[362662668,1748389832706,-400.45419719,0.00019178,2]
[362662669,1748389832717,-430.0,0.00019178,2]
[362662670,1748389832727,-400.46427476,0.00019178,2]
[362662671,1748389832737,-430.0,0.00019178,2]
[362662672,1748389832746,-430.0,0.00019178,2]
[362662673,1748389832757,-430.0,0.00019178,2]
[362662674,1748389832766,-430.0,0.00019178,2]
[362662675,1748389832776,-430.0,0.00019178,2]
[362662676,1748389832785,-430.0,0.00019178,2]
[362662677,1748389832795,-400.0,0.00019178,2]
[362662678,1748389832805,-430.0,0.00019178,2]
[362662679,1748389832818,-430.0,0.00019178,2]
[362662680,1748389832828,-430.0,0.00019178,2]
[362662681,1748389832837,-523.42876983,0.00019178,2]
[362662682,1748389832847,-430.0,0.00019178,2]
[362662683,1748389832859,-400.0,0.00019178,2]
[362662684,1748389832869,-430.0,0.00019178,2]
[362662685,1748389832878,-400.0,0.00019178,2]
[362662686,1748389832888,-430.0,0.00019178,2]
[362662687,1748389832898,-430.0,0.00019178,2]
[362662688,1748389832908,-400.0,0.00019178,2]
[362662689,1748389832918,-430.0,0.00019178,2]
[362662690,1748389832927,-400.91748512,0.00019178,2]
[362662691,1748389832937,-400.1806231,0.00019178,2]
[362662692,1748389832946,-430.0,0.00019178,2]
[362662693,1748389832955,-400.48333966,0.00019178,2]
[362662694,1748389832965,-430.0,0.00019178,2]
[362662695,1748389832975,-400.0,0.00019178,2]
[362662696,1748389832984,-430.0,0.00019178,2]
[362662697,1748389832994,-400.0,0.00019178,2]
[362662698,1748389833003,-432.20804807,0.00019178,2]
[362662699,1748389833014,-400.24568923,0.00019178,2]
[362662700,1748389833024,-430.0,0.00019178,2]
[362662701,1748389833035,-278.26155394,0.00019178,2]
[362662702,1748389833045,-430.0,0.00019178,2]
[362662703,1748389833054,-199.12997492,0.00019178,2]
[362662704,1748389833064,-305.61938522,0.00019178,2]
[362662705,1748389833073,-430.0,0.00019178,2]
[362662706,1748389833083,-400.0,0.00019178,2]
[362662707,1748389833092,-339.47530622,0.00019178,2]
[362662708,1748389833101,-430.0,0.00019178,2]
[362662709,1748389833112,-400.0,0.00019178,2]
[362662710,1748389833122,-400.0,0.00019178,2]
[362662711,1748389833131,-400.0,0.00019178,2]
[362662712,1748389833141,-400.0,0.00019178,2]
[362662713,1748389833151,-430.0,0.00019178,2]
[362662714,1748389833160,-507.72042522,0.00019178,2]
[362662715,1748389833170,-430.0,0.00019178,2]
[362662716,1748389833180,-400.0,0.00019178,2]
[362662717,1748389833189,-430.0,0.00019178,2]
[362662718,1748389833199,-400.0,0.00019178,2]
[362662719,1748389833209,-430.0,0.00019178,2]
[362662720,1748389833219,-400.0,0.00019178,2]
[362662721,1748389833230,-400.0,0.00019178,2]
[362662722,1748389833239,-430.0,0.00019178,2]
[362662723,1748389833249,-400.0,0.00019178,2]
[362662724,1748389833259,-430.0,0.00019178,2]
[362662725,1748389833268,-400.0,0.00019178,2]
[362662726,1748389833277,-430.0,0.00019178,2]
[362662727,1748389833287,-554.65546797,0.00019178,2]
[362662728,1748389833297,-430.0,0.00019178,2]
[362662729,1748389833306,-430.0,0.00019178,2]
[362662730,1748389833316,-430.0,0.00019178,2]
[362662731,1748389833326,-400.0,0.00019178,2]
[362662732,1748389833335,-430.0,0.00019178,2]
[362662733,1748389833344,-400.0,0.00019178,2]
[362662734,1748389833354,-400.0,0.00019178,2]
[362662735,1748389833363,-430.0,0.00019178,2]
[362662736,1748389833373,-402.7164939,0.00019178,2]
[362662737,1748389833383,-430.0,0.00019178,2]
[362662738,1748389833392,-400.0,0.00019178,2]
[362662739,1748389833401,-430.0,0.00019178,2]
[362662740,1748389833411,-430.0,0.00019178,2]
[362662741,1748389833421,-430.0,0.00019178,2]
[362662742,1748389833431,-430.0,0.00019178,2]
[362662743,1748389833441,-400.0,0.00019178,2]
[362662744,1748389833451,-430.0,0.00019178,2]
[362662745,1748389833461,-430.0,0.00019178,2]
[362662746,1748389833470,-430.0,0.00019178,2]
[362662747,1748389833480,-430.0,0.00019178,2]
[362662748,1748389833489,-400.0,0.00019178,2]
[362662749,1748389833499,-430.0,0.00019178,2]
[362662750,1748389833513,-156.58465985,0.00019178,2]
[362662751,1748389833523,-430.0,0.00019178,2]
[362662752,1748389833534,-431.32001014,0.00019178,2]
[362662753,1748389833544,-430.0,0.00019178,2]
[362662754,1748389833554,-430.0,0.00019178,2]
[362662755,1748389833563,-430.0,0.00019178,2]
[362662756,1748389833573,-430.0,0.00019178,2]
[362662757,1748389833582,-400.0,0.00019178,2]
[362662758,1748389833593,-430.0,0.00019178,2]
[362662759,1748389833604,-430.0,0.00019178,2]
[362662760,1748389833614,-430.0,0.00019178,2]
[362662761,1748389833624,-430.0,0.00019178,2]
[362662762,1748389833634,-400.0,0.00019178,2]
[362662763,1748389833644,-430.0,0.00019178,2]
[362662764,1748389833654,-271.70669629,0.00019178,2]
[362662765,1748389833664,-500.0,0.00019178,2]
[362662766,1748389833675,-400.0,0.00019178,2]
[362662767,1748389833684,-430.0,0.00019178,2]
[362662768,1748389833694,-430.0,0.00019178,2]
[362662769,1748389833704,-430.0,0.00019178,2]
[362662770,1748389833713,-430.0,0.00019178,2]
[362662771,1748389833723,-430.0,0.00019178,2]
[362662772,1748389833733,-400.0,0.00019178,2]
[362662773,1748389833743,-400.0,0.00019178,2]
[362662774,1748389833753,-430.0,0.00019178,2]
[362662775,1748389833763,-430.0,0.00019178,2]
[362662776,1748389833772,-570.0,0.00019178,2]
[362662777,1748389833782,-430.0,0.00019178,2]
[362662778,1748389833791,-430.0,0.00019178,2]
[362662779,1748389833801,-430.0,0.00019178,2]
[362662780,1748389833811,-430.0,0.00019178,2]
[362662781,1748389833821,-430.0,0.00019178,2]
[362662782,1748389833830,-500.0,0.00019178,2]
[362662783,1748389833840,-430.0,0.00019178,2]
[362662784,1748389833850,-430.0,0.00019178,2]
[362662785,1748389833860,-430.77631435,0.00019178,2]
[362662786,1748389833870,-352.97540426,0.00019178,2]
[362662787,1748389833880,-547.05016768,0.00019178,2]
[362662788,1748389833890,-430.0,0.00019178,2]
[362662789,1748389833899,-400.0,0.00019178,2]
[362662790,1748389833909,-430.0,0.00019178,2]
[362662791,1748389833919,-400.6170482,0.00019178,2]
[362662792,1748389833928,-400.0,0.00019178,2]
[362662793,1748389833938,-430.0,0.00019178,2]
[362662794,1748389833948,-430.0,0.00019178,2]
[362662795,1748389833958,-430.0,0.00019178,2]
[362662796,1748389833967,-400.0,0.00019178,2]
[362662797,1748389833977,-400.99236051,0.00019178,2]
[362662798,1748389833986,-430.0,0.00019178,2]
[362662799,1748389833996,-400.0,0.00019178,2]
[362662800,1748389834006,-400.0,0.00019178,2]
[362662801,1748389834016,-450.0,0.00019178,2]
[362662802,1748389834026,-430.0,0.00019178,2]
[362662803,1748389834035,-430.0,0.00019178,2]
[362662804,1748389834045,-430.0,0.00019178,2]
[362662805,1748389834055,-430.0,0.00019178,2]
[362662806,1748389834066,-430.0,0.00019178,2]
[362662807,1748389834076,-430.0,0.00019178,2]
[362662808,1748389834086,-400.0,0.00019178,2]
[362662809,1748389834096,-430.0,0.00019178,2]
[362662810,1748389834107,-430.0,0.00019178,2]
[362662811,1748389834117,-430.0,0.00019178,2]
[362662812,1748389834127,-430.0,0.00019178,2]
[362662813,1748389834137,-430.0,0.00019178,2]
[362662814,1748389834147,-400.0,0.00019178,2]
[362662815,1748389834156,-430.0,0.00019178,2]
[362662816,1748389834166,-400.0,0.00019178,2]
[362662817,1748389834175,-430.0,0.00019178,2]
[362662818,1748389834185,-400.0,0.00019178,2]
[362662819,1748389834194,-430.0,0.00019178,2]
[362662820,1748389834204,-430.0,0.00019178,2]
[362662821,1748389834214,-430.0,0.00019178,2]
[362662822,1748389834224,-430.0,0.00019178,2]
[362662823,1748389834234,-430.0,0.00019178,2]
[362662824,1748389834243,-430.0,0.00019178,2]
[362662825,1748389834254,-430.0,0.00019178,2]
[362662826,1748389834263,-430.0,0.00019178,2]
[362662827,1748389834273,-430.0,0.00019178,2]
[362662828,1748389834283,-438.31317453,0.00019178,2]
[362662829,1748389834293,-430.0,0.00019178,2]
[362662830,1748389834302,-430.0,0.00019178,2]
[362662831,1748389834312,-225.08317339,0.00019178,2]